bitfinex-derivatives/quotes_ETHF0:USTF0_20260222
["timestamp","ask_amount","ask_price","bid_price","bid_amount"]
[1771722915794,0.56264855,1974.4,1973.8,0.1857446]
[1771722917191,0.56264855,1974.4,1973.7,7.90976552]
[1771722917496,0.56264855,1974.4,1973.6,7.90976552]
[1771722917695,0.56264855,1974.4,1973.6,8.09872759]
[1771722917994,0.56264855,1974.4,1973.7,0.18896207]
[1771722922001,0.56264855,1974.4,1973.8,0.1850033]
[1771722922604,0.56264855,1974.4,1973.7,7.90976552]
[1771722922896,0.56264855,1974.4,1973.6,8.09476882]
[1771722923400,0.56264855,1974.4,1973.7,0.18674585]
[1771722925601,0.56264855,1974.4,1973.6,8.09607451]
[1771722925791,0.56264855,1974.4,1973.5,8.09607451]
[1771722925997,0.56264855,1974.4,1973.6,0.18630899]
[1771722928111,0.56264855,1974.4,1973.5,8.095384]
[1771722928409,0.56264855,1974.4,1973.5,7.90976552]
[1771722928810,0.56264855,1974.2,1973.5,7.90976552]
[1771722930711,0.56264855,1974.0,1973.2,7.90976552]
[1771722930905,0.56264855,1974.0,1973.2,8.1007332]
[1771722931107,0.56264855,1973.8,1973.2,0.19096768]
[1771722933606,0.56264855,1973.8,1973.1,0.00591004]
[1771722935715,0.56264855,1973.8,1973.1,0.20277943]
[1771722939819,0.56264855,1973.8,1973.1,0.00591004]
[1771722951728,0.56264855,1973.8,1973.1,0.2031981]
[1771722962340,0.59819795,1973.6,1973.1,0.00591004]
[1771722965638,0.59819795,1973.6,1972.8,7.90976552]
[1771722965837,0.59819795,1973.4,1972.7,8.10569574]
[1771722966644,0.60366413,1973.4,1972.7,8.11131231]
[1771722968836,0.60366413,1973.4,1972.7,7.31204242]
[1771722969039,6.38953256,1973.3,1972.4,0.60333967]
[1771722969245,6.38953256,1973.2,1972.4,0.60333967]
[1771722969542,0.00546618,1973.4,1972.4,0.60333967]
[1771722969743,6.40958165,1973.3,1972.4,0.60333967]
[1771722969940,0.46542772,1973.2,1972.4,0.60835573]
[1771722970144,0.00546618,1973.4,1972.4,0.60835573]
[1771722970443,6.42735788,1973.3,1972.4,0.60835573]
[1771722970640,0.00546618,1973.4,1972.4,0.60835573]
[1771722970842,6.42724332,1973.3,1972.4,0.60835573]
[1771722971140,0.00546618,1973.4,1972.4,0.60835573]
[1771722971341,0.46498203,1973.3,1972.4,0.60835573]
[1771722971539,0.00546618,1973.4,1972.4,0.60835573]
[1771722971840,0.46498203,1973.3,1972.4,0.60835573]
[1771722972035,0.00546618,1973.4,1972.4,0.60835573]
[1771722972244,0.46498203,1973.3,1972.4,0.60835573]
[1771722972440,0.00546618,1973.4,1972.4,0.60835573]
[1771722972640,0.4648318,1973.3,1972.4,0.60835573]
[1771722972840,0.00546618,1973.4,1972.4,0.60835573]
[1771722973045,0.4648318,1973.3,1972.4,0.60835573]
[1771722973246,0.000991,1973.3,1972.4,0.60835573]
[1771722990662,6.71243,1973.8,1972.4,0.60835573]
[1771722990663,4.2400768,1973.8,1972.5,0.25358]
[1771722990960,0.00134421,1973.9,1972.6,0.59996334]
[1771722991758,0.00569219,1973.9,1972.6,0.59996334]
[1771722991960,0.00612613,1973.8,1972.6,0.59996334]
[1771722998459,0.46496849,1973.7,1972.6,0.59996334]
[1771722998658,0.00434798,1973.9,1972.6,0.59996334]
[1771722998862,6.42184077,1973.8,1972.6,0.59996334]
[1771722999059,0.46498782,1973.7,1972.6,0.59996334]
[1771722999259,0.00434798,1973.9,1972.6,0.59996334]
[1771722999561,6.42143158,1973.8,1972.6,0.59996334]
[1771722999762,0.00434798,1973.9,1972.6,0.59996334]
[1771722999763,0.464964,1973.7,1972.6,0.59996334]
[1771722999956,0.00434798,1973.9,1972.6,0.59996334]
[1771723000154,6.42143089,1973.8,1972.6,0.59996334]
[1771723000457,0.46496383,1973.7,1972.6,0.59996334]
[1771723000657,0.00434798,1973.9,1972.6,0.59996334]
[1771723000857,6.42121815,1973.8,1972.7,0.60807611]
[1771723001162,6.42121815,1973.7,1972.7,0.60807611]
[1771723001463,0.00434798,1973.9,1972.7,0.60807611]
[1771723001656,6.42106953,1973.8,1972.7,0.60807611]
[1771723001856,6.42106953,1973.7,1972.7,0.60807611]
[1771723002063,0.00434798,1973.9,1972.7,0.60807611]
[1771723002259,6.42106735,1973.8,1972.7,0.60807611]
[1771723002460,6.42106735,1973.7,1972.7,0.60807611]
[1771723002759,0.00434798,1973.9,1972.7,0.60807611]
[1771723002961,6.4210128,1973.8,1972.7,0.60807611]
[1771723003163,6.4210128,1973.7,1972.7,0.60807611]
[1771723003460,0.00434798,1973.9,1972.7,0.60807611]
[1771723003660,6.41695673,1973.8,1972.7,0.60807611]
[1771723003865,6.41695673,1973.7,1972.7,0.60807611]
[1771723004164,0.00434798,1973.9,1972.7,0.60807611]
[1771723004365,6.41708609,1973.8,1972.7,0.60807611]
[1771723004565,6.41708609,1973.7,1972.7,0.60807611]
[1771723004764,0.00434798,1973.9,1972.7,0.60807611]
[1771723004964,6.41708586,1973.8,1972.7,0.60807611]
[1771723005163,6.41708586,1973.7,1972.7,0.60807611]
[1771723005360,0.00434798,1973.9,1972.7,0.60807611]
[1771723005562,6.41731845,1973.8,1972.7,0.60807611]
[1771723005758,0.00434798,1973.9,1972.7,0.60807611]
[1771723005759,0.46495803,1973.7,1972.7,0.60807611]
[1771723005958,0.00434798,1973.9,1972.7,0.60807611]
[1771723006162,6.41726222,1973.8,1972.7,0.60807611]
[1771723006367,0.00434798,1973.9,1972.7,0.60807611]
[1771723006668,6.4173626,1973.8,1972.7,0.60807611]
[1771723006963,0.00434798,1973.9,1972.7,0.60807611]
[1771723007163,6.4173626,1973.8,1972.7,0.60807611]
[1771723007364,0.00434798,1973.9,1972.7,0.60807611]
[1771723007564,6.41749143,1973.8,1972.7,0.60807611]
[1771723007763,0.00434798,1973.9,1972.7,0.60807611]
[1771723007971,6.41749143,1973.8,1972.7,0.60807611]
[1771723008174,0.00434798,1973.9,1972.7,0.60807611]
[1771723008474,6.41768594,1973.8,1972.7,0.60807611]
[1771723008769,0.00434798,1973.9,1972.7,0.60807611]
[1771723008968,6.41768594,1973.8,1972.7,0.60807611]
[1771723009169,0.00434798,1973.9,1972.7,0.60807611]
[1771723009360,6.41796908,1973.8,1972.7,0.60807611]
[1771723009561,0.00434798,1973.9,1972.7,0.60807611]
[1771723009771,6.41796969,1973.8,1972.7,0.60807611]
[1771723010071,0.00434798,1973.9,1972.7,0.60807611]
[1771723010271,6.41799525,1973.8,1972.7,0.60807611]
[1771723010471,0.00434798,1973.9,1972.7,0.60807611]
[1771723010670,6.41833396,1973.8,1972.7,0.60807611]
[1771723010872,0.00434798,1973.9,1972.7,0.60807611]
[1771723011074,6.41833458,1973.8,1972.7,0.60807611]
[1771723011373,0.46503795,1973.7,1972.7,0.60807611]
[1771723011574,0.00434798,1973.9,1972.7,0.60807611]
[1771723011874,6.41879675,1973.8,1972.7,0.60807611]
[1771723012074,0.46507122,1973.7,1972.7,0.60807611]
[1771723012372,0.00434798,1973.9,1972.7,0.60807611]
[1771723012574,6.41936346,1973.8,1972.7,0.60807611]
[1771723012874,0.46511205,1973.7,1972.7,0.60807611]
[1771723013073,0.00434798,1973.9,1972.7,0.60807611]
[1771723013271,6.41940481,1973.8,1972.7,0.60807611]
[1771723013471,0.46515998,1973.7,1972.7,0.60807611]
[1771723013672,0.00434798,1973.9,1972.7,0.60807611]
[1771723013972,6.42002808,1973.8,1972.7,0.60807611]
[1771723014171,0.46515993,1973.7,1972.7,0.60807611]
[1771723014369,0.00434798,1973.9,1972.7,0.60807611]
[1771723014567,6.42099962,1973.8,1972.7,0.60807611]
[1771723014775,0.4652301,1973.7,1972.7,0.60807611]
[1771723014977,0.00434798,1973.9,1972.7,0.60807611]
[1771723015278,6.42099962,1973.8,1972.7,0.60807611]
[1771723015577,0.4652301,1973.7,1972.7,0.60807611]
[1771723015774,0.00434798,1973.9,1972.7,0.60807611]
[1771723016076,6.42211733,1973.8,1972.7,0.60807611]
[1771723016272,6.42211733,1973.7,1972.7,0.60807611]
[1771723016472,0.00434798,1973.9,1972.7,0.60807611]
[1771723016771,6.4234639,1973.8,1972.7,0.60807611]
[1771723016968,6.4234639,1973.7,1972.7,0.60807611]
[1771723017171,0.46552616,1973.6,1972.7,0.60807611]
[1771723017377,0.00434798,1973.9,1972.7,0.60807611]
[1771723017676,6.42510237,1973.8,1972.7,0.60807611]
[1771723017875,6.42510237,1973.7,1972.7,0.60807611]
[1771723018175,0.46552613,1973.6,1972.7,0.60807611]
[1771723018373,4.25517378,1973.9,1972.8,0.60632777]
[1771723018573,6.42712517,1973.8,1972.8,0.60632777]
[1771723018771,6.42712517,1973.7,1972.8,0.60632777]
[1771723018971,4.25517378,1973.9,1972.8,0.60632777]
[1771723018972,0.4656721,1973.6,1972.8,0.60632777]
[1771723019171,4.25517378,1973.9,1972.8,0.60632777]
[1771723019374,6.42986003,1973.8,1972.8,0.60632777]
[1771723019575,6.42986003,1973.7,1972.8,0.60632777]
[1771723019768,0.46586923,1973.6,1972.8,0.60632777]
[1771723019967,4.25517378,1973.9,1972.8,0.60632777]
[1771723020177,6.42986294,1973.8,1972.8,0.60632777]
[1771723020379,6.42986294,1973.7,1972.8,0.60632777]
[1771723020676,6.42986294,1973.6,1972.8,0.60632777]
[1771723020877,0.46586925,1973.5,1972.8,0.60632777]
[1771723021078,4.25517378,1973.9,1972.8,0.60632777]
[1771723021378,6.43470003,1973.8,1972.8,0.60632777]
[1771723021579,6.43470003,1973.7,1972.8,0.60632777]
[1771723021774,6.43470003,1973.6,1972.8,0.60632777]
[1771723021979,0.46623058,1973.5,1972.8,0.60632777]
[1771723022175,4.25517378,1973.9,1972.8,0.60632777]
[1771723022479,6.43511076,1973.8,1972.8,0.60632777]
[1771723022680,4.25517378,1973.9,1972.7,7.93366228]
[1771723022681,0.00434798,1973.9,1973.0,0.60577831]
[1771723032689,0.00434798,1973.9,1973.0,8.53944059]
[1771723032891,0.00434798,1973.9,1973.1,0.60693214]
[1771723051305,0.00434798,1973.9,1973.2,0.61009072]
[1771723060514,18.55955046,1976.0,1973.2,8.543753]
[1771723060515,4.2508258,1974.5,1973.2,8.543753]
[1771723060711,0.46627782,1974.4,1973.3,0.61098038]
[1771723061011,6.39770625,1974.3,1973.3,0.61098038]
[1771723061310,6.39770625,1974.2,1973.3,0.61098038]
[1771723061517,0.46627782,1974.1,1973.3,0.61098038]
[1771723061714,0.00464407,1974.2,1973.3,0.61098038]
[1771723061909,0.46617435,1974.1,1973.3,0.61098038]
[1771723062109,0.00464407,1974.2,1973.3,0.61098038]
[1771723062310,0.46611182,1974.1,1973.3,0.61098038]
[1771723062511,0.00464407,1974.2,1973.3,0.61098038]
[1771723062713,0.46611182,1974.1,1973.3,0.61098038]
[1771723062912,0.00464407,1974.2,1973.3,0.61098038]
[1771723068711,15.36099162,1975.0,1972.8,10.57573358]
[1771723068712,1.90411633,1975.2,1973.8,6.23412]
[1771723069009,0.60325019,1975.6,1973.7,6.23444]
[1771723069010,0.60325019,1975.6,1974.9,6.35260334]
[1771723069215,0.60250902,1976.3,1975.1,0.00148235]
[1771723069407,0.60250902,1976.3,1975.2,6.64]
[1771723069715,0.60767308,1976.3,1975.3,0.00148235]
[1771723069915,0.60250902,1976.1,1975.4,0.00148235]
[1771723070311,4.45257486,1976.0,1975.4,0.00148235]
[1771723070512,0.60250902,1976.0,1975.4,0.00148235]
[1771723070914,4.45257486,1976.0,1975.4,0.00148235]
[1771723073018,0.60060794,1975.9,1975.4,0.00148235]
[1771723077229,0.59969857,1975.8,1975.4,0.00148235]
[1771723077731,0.59969857,1976.2,1975.4,0.00148235]
[1771723077932,0.59969857,1975.8,1975.4,0.00148235]
[1771723078433,0.56482222,1976.7,1975.7,0.25317]
[1771723078630,0.56482222,1976.7,1975.9,0.57512153]
[1771723078830,0.56482222,1977.5,1976.3,0.57512153]
[1771723079030,0.56482222,1977.5,1976.5,0.57512153]
[1771723079535,0.56482222,1977.3,1976.6,6.636]
[1771723079735,0.56482222,1977.3,1976.6,6.64007131]
[1771723079924,0.56482222,1977.3,1976.7,0.57512153]
[1771723080130,0.56482222,1977.1,1976.7,0.57512153]
[1771723080931,0.56482222,1977.1,1976.8,0.57512153]
[1771723081124,0.56482222,1976.9,1976.6,0.00407131]
[1771723081731,0.56482222,1976.6,1976.3,0.57512153]
[1771723081927,0.56482222,1976.6,1976.3,7.21012153]
[1771723082735,0.56482222,1976.6,1976.3,7.21507177]
[1771723083532,0.00598025,1977.5,1976.4,0.57512153]
[1771723084436,0.00598025,1977.5,1976.6,0.57512153]
[1771723084736,0.00598025,1977.5,1976.8,0.57512153]
[1771723084935,0.00598025,1977.5,1977.0,0.57512153]
[1771723085430,0.56482222,1978.1,1977.0,0.57512153]
[1771723085632,0.56482222,1978.1,1976.9,6.634]
[1771723085633,0.56482222,1979.0,1977.4,0.57512153]
[1771723085833,0.25271,1979.4,1977.5,0.57512153]
[1771723085834,0.56482222,1978.9,1977.5,0.57512153]
[1771723086140,0.56482222,1978.9,1977.4,6.633]
[1771723086335,0.56482222,1978.3,1977.4,6.633]
[1771723086525,0.56942487,1978.3,1977.4,7.20812153]
[1771723086832,3.85006584,1977.9,1977.4,7.20812153]
[1771723087033,0.56482222,1977.8,1977.4,7.20812153]
[1771723087425,3.85006584,1977.6,1977.4,7.20812153]
[1771723087626,0.56482222,1977.6,1977.0,0.57512153]
[1771723087933,0.56482222,1977.6,1977.1,7.19869673]
[1771723088133,0.5711643,1978.2,1977.2,0.56669673]
[1771723088635,0.00460265,1978.3,1977.2,0.56669673]
[1771723088636,0.5711643,1978.1,1977.2,0.56669673]
[1771723089125,0.00460265,1978.3,1977.4,0.56669673]
[1771723089331,0.57576695,1978.3,1977.6,0.56669673]
[1771723089734,0.5711643,1978.1,1977.6,0.56669673]
[1771723090234,3.85006584,1978.0,1977.6,0.56669673]
[1771723090530,0.5711643,1978.0,1977.6,0.56669673]
[1771723090730,0.5711643,1978.0,1977.7,0.56669673]
[1771723090731,3.85006584,1977.9,1977.7,0.56669673]
[1771723090936,0.5711643,1978.0,1977.7,0.57121607]
[1771723091134,3.85006584,1977.8,1977.7,0.57121607]
[1771723091436,0.5711643,1978.2,1977.7,0.57121607]
[1771723091634,2.90320262,1978.0,1977.7,6.63451934]
[1771723091835,0.59667916,1977.9,1977.5,6.63]
[1771723092335,2.90320262,1977.8,1977.5,7.2022899]
[1771723092537,0.00460265,1978.3,1977.6,0.57227946]
[1771723092732,1.77229581,1978.3,1977.6,0.57227946]
[1771723092929,0.60710843,1978.3,1977.6,0.5764111]
[1771723093236,2.37019894,1978.2,1977.6,0.5764111]
[1771723093437,0.60344185,1978.1,1977.6,0.5764111]
[1771723093734,0.60344185,1978.0,1977.6,0.5764111]
[1771723093936,0.60344185,1978.0,1977.6,0.00413164]
[1771723094133,2.37113501,1977.8,1977.6,0.00413164]
[1771723094328,0.60344185,1978.2,1977.6,0.00413164]
[1771723094726,2.37113501,1977.9,1977.6,0.00413164]
[1771723094926,0.60344185,1977.9,1977.6,0.00413164]
[1771723095128,1.76769316,1977.7,1977.5,6.64497491]
[1771723095330,0.60344185,1977.9,1977.5,6.64497491]
[1771723095726,0.59667916,1977.8,1977.5,6.64497491]
[1771723096040,0.59667916,1978.2,1977.5,6.64497491]
[1771723096238,0.59667916,1977.9,1977.6,0.01497491]
[1771723096637,2.36437232,1977.9,1977.6,0.01497491]
[1771723096833,0.59667916,1977.9,1977.5,6.64855413]
[1771723097039,0.59667916,1977.9,1977.6,0.01497491]
[1771723097333,0.17688763,1977.7,1977.6,0.01497491]
[1771723097538,0.46576078,1977.9,1977.6,0.01497491]
[1771723099232,1.06243994,1977.9,1977.6,0.01497491]
[1771723100636,0.60128181,1978.3,1977.8,0.02470052]
[1771723100835,0.00460265,1978.3,1977.8,0.02470052]
[1771723102644,0.59667916,1978.6,1977.8,0.02470052]
[1771723103643,0.60131497,1978.6,1977.8,0.02470052]
[1771723104845,0.60131497,1978.6,1978.1,0.02635921]
[1771723105341,0.60131497,1978.6,1977.7,0.25292]
[1771723105641,0.60131497,1978.6,1977.6,0.02571247]
[1771723108149,0.60131497,1978.6,1977.6,4.23656924]
[1771723109348,0.60131497,1978.6,1977.7,4.21085677]
[1771723110040,0.60131497,1978.6,1977.6,1.49011673]
[1771723110247,0.60131497,1978.6,1977.5,0.00357922]
[1771723110545,0.45274501,1978.5,1977.5,0.00357922]
[1771723110746,0.00463581,1978.6,1977.5,0.00357922]
[1771723110946,0.45274614,1978.5,1977.5,0.00357922]
[1771723111249,0.45309925,1978.4,1977.5,0.00357922]
[1771723111548,0.00709626,1978.5,1977.5,0.00357922]
[1771723111846,0.00709626,1978.3,1977.5,0.00357922]
[1771723112447,0.00709626,1978.3,1977.5,0.61094481]
[1771723113245,0.45420993,1978.2,1977.5,0.61094481]
[1771723113444,0.00463581,1978.6,1977.5,0.61094481]
[1771723113645,0.45421019,1978.5,1977.5,0.00357922]
[1771723113848,0.45421019,1978.4,1977.5,0.00357922]
[1771723114148,0.45421019,1978.3,1977.5,0.00357922]
[1771723114347,0.45421019,1978.2,1977.5,0.00357922]
[1771723114550,0.00463581,1978.6,1977.5,0.00357922]
[1771723114752,0.45433617,1978.5,1977.5,0.00357922]
[1771723115050,0.45433617,1978.4,1977.5,0.00357922]
[1771723115244,0.45433617,1978.3,1977.5,0.61312936]
[1771723115445,0.45433617,1978.2,1977.5,0.61312936]
[1771723115650,0.00463581,1978.6,1977.5,0.61312936]
[1771723115849,0.45446988,1978.5,1977.5,0.61312936]
[1771723116044,0.45446988,1978.4,1977.5,0.61312936]
[1771723116247,0.45446988,1978.3,1977.5,0.61312936]
[1771723116541,0.45446988,1978.2,1977.5,0.61312936]
[1771723116742,0.00463581,1978.6,1977.5,0.61312936]
[1771723116941,0.45447087,1978.5,1977.5,0.61312936]
[1771723117146,0.45447087,1978.4,1977.5,0.61312936]
[1771723117351,0.45447087,1978.3,1977.5,0.61312936]
[1771723117552,0.45447087,1978.2,1977.5,0.61312936]
[1771723117752,0.00463581,1978.6,1977.5,0.61312936]
[1771723117953,0.45447481,1978.5,1977.5,0.61312936]
[1771723118149,0.45447481,1978.4,1977.5,0.61312936]
[1771723118350,0.45447481,1978.3,1977.5,0.61312936]
[1771723118550,0.45447481,1978.2,1977.5,0.61312936]
[1771723118853,0.00463581,1978.6,1977.5,0.61312936]
[1771723119052,0.45445749,1978.5,1977.5,0.61312936]
[1771723119250,0.45445749,1978.4,1977.5,0.61312936]
[1771723119446,0.45445749,1978.3,1977.5,0.61312936]
[1771723119649,0.45445749,1978.2,1977.5,0.61312936]
[1771723119850,0.00463581,1978.6,1977.5,0.61312936]
[1771723120050,0.45442974,1978.5,1977.6,0.61047197]
[1771723120251,0.45442974,1978.4,1977.6,0.61047197]
[1771723120551,0.45442974,1978.3,1977.6,0.61047197]
[1771723120753,0.45442974,1978.2,1977.6,0.61047197]
[1771723120952,0.00463581,1978.6,1977.6,0.61047197]
[1771723121153,0.45440584,1978.5,1977.6,0.61047197]
[1771723121350,0.45440584,1978.4,1977.6,0.61047197]
[1771723121654,0.45440584,1978.3,1977.6,0.61047197]
[1771723121853,0.45440584,1978.2,1977.6,0.61047197]
[1771723122043,0.00463581,1978.6,1977.6,0.61047197]
[1771723122245,0.45438287,1978.5,1977.6,0.61047197]
[1771723122449,0.45438287,1978.4,1977.6,0.61047197]
[1771723122658,0.45438287,1978.3,1977.6,0.61047197]
[1771723122857,0.45438287,1978.2,1977.6,0.61047197]
[1771723123154,0.00463581,1978.6,1977.6,0.61047197]
[1771723123356,0.45435348,1978.5,1977.6,0.61047197]
[1771723123656,0.45435348,1978.4,1977.6,0.61047197]
[1771723123955,0.45435348,1978.3,1977.6,0.61047197]
[1771723124153,0.45435348,1978.2,1977.6,0.61047197]
[1771723124356,0.00463581,1978.6,1977.6,0.61047197]
[1771723124558,0.45433702,1978.5,1977.6,0.61047197]
[1771723124756,0.45433702,1978.4,1977.6,0.61047197]
[1771723124957,0.45433702,1978.3,1977.6,0.61047197]
[1771723125159,0.45433702,1978.2,1977.6,0.61047197]
[1771723125457,0.00463581,1978.6,1977.6,0.61047197]
[1771723125657,0.45432245,1978.5,1977.6,0.61047197]
[1771723125857,0.45432245,1978.4,1977.6,0.61047197]
[1771723126058,0.45432245,1978.3,1977.6,0.61047197]
[1771723126256,0.45432245,1978.2,1977.5,0.00357922]
[1771723126562,0.45431392,1978.1,1977.3,0.60999523]
[1771723126761,0.45431392,1978.0,1977.3,0.60999523]
[1771723126951,0.45431392,1977.9,1977.3,0.60999523]
[1771723127152,0.25283,1978.4,1977.3,0.60999523]
[1771723127356,0.45978321,1978.3,1977.3,0.60999523]
[1771723127557,0.45978321,1978.2,1977.3,0.61454074]
[1771723127756,0.45978321,1978.1,1977.3,0.61454074]
[1771723127963,0.45978321,1978.0,1977.3,0.61454074]
[1771723128156,0.25283,1978.4,1977.3,0.61454074]
[1771723128359,0.45969857,1978.3,1977.3,0.00454551]
[1771723128558,0.45969857,1978.2,1977.3,0.00454551]
[1771723128754,0.25283,1978.4,1977.3,0.00454551]
[1771723128755,0.45969857,1978.1,1977.3,0.00454551]
[1771723128959,0.45969857,1978.0,1977.3,0.00454551]
[1771723129158,0.45969857,1977.9,1977.3,0.00454551]
[1771723129359,0.25285,1978.2,1977.3,0.00454551]
[1771723129560,0.45960696,1978.1,1977.3,0.00454551]
[1771723129864,0.45960696,1978.0,1977.3,0.00454551]
[1771723130164,0.45960696,1977.9,1977.3,0.00454551]
[1771723130465,0.45947368,1977.8,1977.3,0.00454551]
[1771723130655,0.45947368,1977.7,1976.7,0.60929763]
[1771723130962,0.4595007,1977.6,1976.7,0.60929763]
[1771723131163,0.25289,1977.9,1976.7,0.60929763]
[1771723131366,0.45927114,1977.8,1976.7,0.60929763]
[1771723131556,0.45927114,1977.7,1976.7,0.61301138]
[1771723131758,0.45927114,1977.6,1976.7,0.61301138]
[1771723131964,0.25289,1977.9,1976.7,0.61301138]
[1771723132167,0.45927139,1977.8,1976.7,0.61301138]
[1771723132370,0.45927139,1977.7,1976.7,0.61301138]
[1771723132668,0.45927139,1977.6,1976.7,0.61301138]
[1771723132862,0.25289,1977.9,1976.7,0.61301138]
[1771723133063,0.45909355,1977.8,1976.7,0.61301138]
[1771723133264,0.45909355,1977.7,1976.7,0.61301138]
[1771723133465,0.25289,1977.9,1976.7,0.61301138]
[1771723133466,0.45909355,1977.6,1976.7,0.61301138]
[1771723133667,0.25289,1977.9,1976.7,0.61301138]
[1771723133867,0.45899084,1977.8,1976.7,0.61301138]
[1771723134068,0.45899084,1977.7,1976.7,0.61301138]
[1771723134368,0.45899084,1977.6,1976.7,0.61301138]
[1771723134567,0.25289,1977.9,1976.7,0.61301138]
[1771723134768,0.45893761,1977.8,1976.7,0.61301138]
[1771723135068,0.45893761,1977.7,1976.7,0.61301138]
[1771723135269,0.45893761,1977.6,1976.7,0.61301138]
[1771723135467,0.25289,1977.9,1976.7,0.61301138]
[1771723135773,0.4589319,1977.8,1976.7,0.61301138]
[1771723136069,0.4589319,1977.7,1976.7,0.61301138]
[1771723136269,0.4589319,1977.6,1976.7,0.61301138]
[1771723136466,0.25289,1977.9,1976.7,0.61301138]
[1771723136674,0.45886978,1977.8,1976.7,0.61301138]
[1771723136870,0.45886978,1977.7,1976.7,0.61301138]
[1771723137066,0.45886978,1977.6,1976.7,0.61301138]
[1771723137267,0.25289,1977.9,1976.7,0.61301138]
[1771723137471,0.45883059,1977.8,1976.7,0.61301138]
[1771723137672,0.45883059,1977.7,1976.7,0.61301138]
[1771723137872,0.25289,1977.9,1976.7,0.61301138]
[1771723138073,0.45879751,1977.8,1976.7,0.61301138]
[1771723138272,0.25289,1977.9,1976.7,0.61301138]
[1771723138473,0.45882035,1977.8,1976.7,0.61301138]
[1771723138668,0.45882036,1977.7,1976.7,0.61301138]
[1771723138869,0.25289,1977.9,1976.7,0.61301138]
[1771723139068,0.45882001,1977.8,1976.7,0.61301138]
[1771723139271,0.45882001,1977.7,1976.7,0.61301138]
[1771723139472,0.25289,1977.9,1976.7,0.61301138]
[1771723139672,0.45887743,1977.8,1976.7,0.61301138]
[1771723139873,0.25289,1977.9,1976.7,0.61301138]
[1771723140074,0.45887592,1977.8,1976.7,0.61301138]
[1771723140276,0.25289,1977.9,1976.7,0.61301138]
[1771723140471,0.45886356,1977.8,1976.7,0.61301138]
[1771723140670,0.4588632,1977.7,1976.7,0.61301138]
[1771723140871,0.25289,1977.9,1976.7,0.61301138]
[1771723141073,0.45886356,1977.8,1976.7,0.61301138]
[1771723141272,0.45886356,1977.7,1976.7,0.61301138]
[1771723141472,0.25289,1977.9,1976.7,0.61301138]
[1771723141776,0.45884998,1977.8,1976.7,0.61301138]
[1771723141971,0.45884998,1977.7,1976.7,0.61301138]
[1771723142271,0.25289,1977.9,1976.7,0.61301138]
[1771723142472,0.45884671,1977.8,1976.7,0.61301138]
[1771723142671,0.45884671,1977.7,1976.7,0.61301138]
[1771723142972,0.25289,1977.9,1976.7,0.61301138]
[1771723143276,0.45884682,1977.8,1976.7,0.61301138]
[1771723143476,0.45884682,1977.7,1976.7,0.61301138]
[1771723143678,0.25289,1977.9,1976.7,0.61301138]
[1771723143977,0.45885545,1977.8,1976.7,0.61301138]
[1771723144175,0.45885545,1977.7,1976.7,0.61301138]
[1771723144377,0.25289,1977.9,1976.7,0.61301138]
[1771723144579,0.45887314,1977.8,1976.7,0.61301138]
[1771723144778,0.25289,1977.9,1976.7,0.61301138]
[1771723144977,0.45886991,1977.8,1976.7,0.61301138]
[1771723145280,0.25289,1977.9,1976.7,0.61301138]
[1771723145578,0.45890238,1977.8,1976.7,0.61301138]
[1771723145779,0.25289,1977.9,1976.7,0.61301138]
[1771723146080,0.45890202,1977.8,1977.1,2.24818786]
[1771723146280,0.25289,1977.9,1977.1,2.24818786]
[1771723146581,0.45894746,1977.8,1977.1,2.24818786]
[1771723146780,0.25289,1977.9,1977.1,2.24818786]
[1771723147082,1.63751065,1977.6,1976.8,0.61067721]
[1771723147278,0.45904938,1977.5,1976.8,0.61067721]
[1771723147484,1.63751065,1977.6,1976.7,1.6412244]
[1771723147679,1.63751065,1977.6,1975.9,7.92908769]
[1771723147680,1.63751065,1977.2,1976.4,0.60952509]
[1771723147884,0.25294,1977.5,1976.5,0.60952509]
[1771723148078,0.45909893,1977.4,1976.5,0.60952509]
[1771723148280,0.25294,1977.5,1976.5,0.60952509]
[1771723148281,0.45909893,1977.3,1976.5,0.60952509]
[1771723148479,0.45909893,1977.2,1976.5,0.60952509]
[1771723148681,0.00544489,1977.2,1976.5,0.6151048]
[1771723149277,0.02411774,1977.1,1976.5,0.6151048]
[1771723157399,0.02414529,1976.9,1976.5,0.6151048]
[1771723158497,0.02414529,1977.1,1976.5,0.6151048]
[1771723158797,0.00544489,1977.2,1976.5,0.6151048]
[1771723158798,0.48375207,1977.0,1976.5,0.6151048]
[1771723158994,0.02414529,1977.0,1976.5,0.6151048]
[1771723159301,0.00544489,1977.2,1976.5,0.6151048]
[1771723160697,0.02950474,1977.2,1976.5,0.6151048]
[1771723160898,0.48382394,1977.1,1976.5,0.6151048]
[1771723161098,0.02405985,1977.1,1976.5,0.6151048]
[1771723161497,0.00544489,1977.2,1976.5,0.6151048]
[1771723161699,0.45977594,1977.1,1976.5,0.6151048]
[1771723161896,0.00544489,1977.2,1976.5,0.6151048]
[1771723166103,0.03092929,1977.2,1976.5,0.6151048]
[1771723168205,0.45986194,1977.1,1976.5,0.6151048]
[1771723168408,0.03092929,1977.2,1976.5,0.6151048]
[1771723168705,0.45989016,1977.1,1976.5,0.6151048]
[1771723168903,0.03092929,1977.2,1976.5,0.6151048]
[1771723169100,0.45989049,1977.1,1976.5,0.6151048]
[1771723169307,0.03092929,1977.2,1976.5,0.6151048]
[1771723169504,0.45996692,1977.1,1976.5,0.6151048]
[1771723169807,0.03092929,1977.2,1976.5,0.6151048]
[1771723170009,0.45996691,1977.1,1976.5,0.6151048]
[1771723170307,0.03092929,1977.2,1976.5,0.6151048]
[1771723170508,0.45999332,1977.1,1976.5,0.6151048]
[1771723170706,0.03092929,1977.2,1976.5,0.6151048]
[1771723170896,0.45999332,1977.1,1976.5,0.6151048]
[1771723171103,0.03092929,1977.2,1976.5,0.6151048]
[1771723171303,0.4600629,1977.1,1976.5,0.6151048]
[1771723171608,0.03092929,1977.2,1976.5,0.6151048]
[1771723171808,0.46008888,1977.1,1976.5,0.6151048]
[1771723172009,0.03092929,1977.2,1976.5,0.6151048]
[1771723172209,0.46008888,1977.1,1976.5,0.6151048]
[1771723172508,0.03092929,1977.2,1976.5,0.6151048]
[1771723172709,0.46019908,1977.1,1976.5,0.6151048]
[1771723173010,0.03092929,1977.2,1976.5,0.6151048]
[1771723173210,0.46019916,1977.1,1976.5,0.6151048]
[1771723173411,0.46019916,1977.0,1976.5,0.6151048]
[1771723173605,0.03092929,1977.2,1976.5,0.6151048]
[1771723173801,0.46032814,1977.1,1976.5,0.6151048]
[1771723174009,0.46032814,1977.0,1976.5,0.6151048]
[1771723174205,0.03092929,1977.2,1976.6,0.59039598]
[1771723174413,0.46048707,1977.1,1976.6,0.59039598]
[1771723174611,0.03092929,1977.2,1976.6,0.59039598]
[1771723174612,0.46048707,1977.0,1976.6,0.59039598]
[1771723174812,0.03092929,1977.2,1976.6,0.59039598]
[1771723175014,0.46048726,1977.1,1976.6,0.59039598]
[1771723175221,0.46048726,1977.0,1976.6,0.59039598]
[1771723175512,0.03092929,1977.2,1976.6,0.59039598]
[1771723175714,0.46070349,1977.1,1976.6,0.59039598]
[1771723175914,0.46070349,1977.0,1976.6,0.59039598]